bitfinex/quotes_SOLUSD_20260302
["timestamp","ask_amount","ask_price","bid_price","bid_amount"]
[1772461749117,11.99963235,83.336,83.303,2.21517252]
[1772461750413,14.36960862,83.336,83.303,2.21517252]
[1772461750623,2.36997627,83.335,83.303,2.21517252]
[1772461752221,14.36988027,83.334,83.303,2.21517252]
[1772461752399,2.36997627,83.333,83.303,2.21517252]
[1772461753609,2.36997627,83.333,83.304,2.30603725]
[1772461754326,12.000192,83.332,83.304,2.30603725]
[1772461755804,9.24092664,83.33,83.304,2.30603725]
[1772461756226,44.15928062,83.332,83.304,2.30603725]
[1772461756426,9.24092664,83.33,83.304,2.30603725]
[1772461756723,2.15860862,83.329,83.292,2.30603725]
[1772461757822,12.000192,83.332,83.292,2.30603725]
[1772461758024,2.16228376,83.331,83.301,2.26546553]
[1772461758201,12.000192,83.332,83.301,2.26546553]
[1772461758404,11.99961691,83.336,83.301,2.26546553]
[1772461758616,11.99961691,83.336,83.303,2.26546553]
[1772461760912,11.99961691,83.336,83.305,2.26546553]
[1772461763402,2.16228376,83.345,83.31,9.24092664]
[1772461763613,29.99477325,83.348,83.311,2.26546553]
[1772461763614,11.99846419,83.344,83.311,2.26546553]
[1772461764139,14.16074795,83.344,83.311,2.26546553]
[1772461764319,2.16228376,83.339,83.299,2.26546553]
[1772461764513,2.16228376,83.339,83.301,2.26546553]
[1772461766610,44.15993188,83.338,83.303,2.26546553]
[1772461768134,41.99865604,83.336,83.303,2.26546553]
[1772461768429,41.99865604,83.336,83.304,12.00422548]
[1772461768631,41.99865604,83.336,83.305,2.26546553]
[1772461768837,2.16228376,83.335,83.305,2.26546553]
[1772461769246,2.16228376,83.333,83.244,2.26546553]
[1772461769416,9.22756873,83.29,83.241,2.26546553]
[1772461769617,9.22756873,83.28,83.241,2.26546553]
[1772461769837,2.16228376,83.29,83.241,2.26546553]
[1772461770135,14.16593286,83.308,83.271,2.26546553]
[1772461770341,9.22756873,83.3,83.271,2.26546553]
[1772461770526,2.16228376,83.299,83.271,2.26546553]
[1772461771233,2.16228376,83.289,83.261,2.26546553]
[1772461772327,12.00653155,83.288,83.261,2.26546553]
[1772461774141,42.02286043,83.288,83.261,2.26546553]
[1772461774747,2.16228376,83.279,83.242,2.26546553]
[1772461776743,2.16228376,83.279,83.231,12.01475411]
[1772461776744,0.28432314,83.295,83.261,2.26546553]
[1772461776943,2.16228376,83.293,83.261,2.26546553]
[1772461777139,9.22756873,83.29,83.261,2.26546553]
[1772461777451,2.16228376,83.289,83.261,2.26546553]
[1772461778517,1.20088385,83.288,83.261,2.26546553]
[1772461779728,1.20088385,83.294,83.263,2.26546553]
[1772461780746,1.20088385,83.297,83.263,2.26546553]
[1772461781952,12.0053784,83.296,83.263,2.26546553]
[1772461782148,1.20088385,83.295,83.263,2.26546553]
[1772461783922,12.00566667,83.294,83.263,2.26546553]
[1772461784140,1.20088385,83.293,83.263,2.26546553]
[1772461784626,1.20088385,83.293,83.265,2.26546553]
[1772461785446,11.38985249,83.29,83.265,2.26546553]
[1772461785749,1.20088385,83.289,83.265,2.26546553]
[1772461786850,12.00653155,83.288,83.265,2.26546553]
[1772461787027,1.20088385,83.287,83.265,2.26546553]
[1772461789643,12.00681987,83.286,83.265,2.26546553]
[1772461791775,9.22756873,83.28,83.258,2.15305089]
[1772461792061,12.00681987,83.286,83.229,1.20150428]
[1772461792062,2.33259295,83.297,83.261,2.15305089]
[1772461792260,9.22756873,83.3,83.261,2.15305089]
[1772461792261,9.22756873,83.29,83.261,2.15305089]
[1772461792440,1.20088385,83.289,83.261,2.15305089]
[1772461792943,30.0130857,83.297,83.253,12.01149098]
[1772461792944,2.33259295,83.33,83.28,9.22756873]
[1772461793145,9.22756873,83.32,83.291,2.15305089]
[1772461793340,2.33259295,83.319,83.291,2.15305089]
[1772461793860,2.33259295,83.317,83.291,2.15305089]
[1772461794061,2.33259295,83.309,83.275,2.15305089]
[1772461794561,2.33259295,83.309,83.281,2.15305089]
[1772461794735,12.0022084,83.318,83.281,2.15305089]
[1772461794736,2.33259295,83.317,83.281,2.15305089]
[1772461795559,2.33259295,83.309,83.281,2.15305089]
[1772461795874,2.33259295,83.307,83.276,2.15305089]
[1772461796962,9.22756873,83.3,83.271,2.15305089]
[1772461797168,2.33259295,83.301,83.271,2.15305089]
[1772461797474,2.33259295,83.299,83.271,2.15305089]
[1772461798345,12.00509015,83.298,83.271,2.15305089]
[1772461798569,12.00509015,83.298,83.243,1.20130221]
[1772461798570,9.22756873,83.29,83.261,2.15305089]
[1772461798748,2.33259295,83.289,83.261,2.15305089]
[1772461800139,9.22756873,83.29,83.261,2.15305089]
[1772461800465,9.22756873,83.28,83.231,2.15305089]
[1772461800648,12.00536059,83.297,83.271,2.15305089]
[1772461800841,2.33259295,83.299,83.271,2.15305089]
[1772461801041,2.33259295,83.299,83.229,90.11282124]
[1772461801042,2.33259295,83.318,83.281,2.15305089]
[1772461801247,9.22756873,83.33,83.291,2.15305089]
[1772461801443,2.33259295,83.334,83.3,9.22756873]
[1772461801650,2.33259295,83.329,83.292,2.15305089]
[1772461801868,2.33259295,83.336,83.301,2.15305089]
[1772461802248,14.33235295,83.335,83.301,2.15305089]
[1772461802450,14.33235295,83.335,83.303,2.15305089]
[1772461802645,107.95186246,83.371,83.302,12.00451369]
[1772461802646,2.33259295,83.359,83.321,2.15305089]
[1772461803147,47.97041217,83.385,83.296,12.00525317]
[1772461803148,2.33259295,83.385,83.341,2.15305089]
[1772461803341,2.33259295,83.385,83.3,9.22756873]
[1772461803342,0.1,83.39,83.361,2.15305089]
[1772461803546,2.33259295,83.376,83.341,2.15305089]
[1772461803766,11.99371529,83.377,83.318,3.69383402]
[1772461803767,2.33259295,83.359,83.32,9.22756873]
[1772461803973,2.33259295,83.349,83.31,9.22756873]
[1772461804182,2.33259295,83.349,83.288,3.69383402]
[1772461804183,2.33259295,83.319,83.288,3.69383402]
[1772461804349,2.33259295,83.317,83.27,9.22756873]
[1772461804555,2.33259295,83.309,83.27,9.22756873]
[1772461804866,2.33259295,83.299,83.26,9.22756873]
[1772461805070,42.00772941,83.318,83.24,9.22756873]
[1772461805071,9.22756873,83.28,83.24,9.22756873]
[1772461805271,2.33259295,83.281,83.25,9.22756873]
[1772461805466,2.33259295,83.279,83.24,9.22756873]
[1772461805668,2.33259295,83.279,83.227,12.01527334]
[1772461805669,9.22756873,83.26,83.216,12.01690319]
[1772461805873,9.22756873,83.3,83.221,2.15305089]
[1772461805874,11.56016168,83.25,83.221,2.15305089]
[1772461806167,11.56016168,83.25,83.163,1.20245782]
[1772461806168,9.22756873,83.28,83.241,2.15305089]
[1772461806356,2.33259295,83.309,83.272,2.15305089]
[1772461806551,2.33259295,83.309,83.221,48.06453092]
[1772461806552,2.33259295,83.289,83.25,11.38061962]
[1772461806754,2.33259295,83.279,83.242,2.15305089]
[1772461806968,2.33259295,83.269,83.233,2.15305089]
[1772461807150,2.33259295,83.267,83.231,2.15305089]
[1772461807469,42.01277187,83.308,83.24,9.22756873]
[1772461807470,2.33259295,83.278,83.24,9.22756873]
[1772461807659,9.22756873,83.26,83.225,2.15305089]
[1772461807851,11.56016168,83.27,83.231,2.15305089]
[1772461808047,2.33259295,83.269,83.231,2.15305089]
[1772461808458,9.22756873,83.26,83.222,2.15305089]
[1772461808654,42.03295383,83.268,83.222,2.15305089]
[1772461808655,2.33259295,83.259,83.222,2.15305089]
[1772461808862,2.33259295,83.259,83.198,3.69383402]
[1772461808863,2.33259295,83.239,83.197,12.01957787]
[1772461809047,138.10827687,83.268,83.231,2.15305089]
[1772461809048,12.00941538,83.268,83.231,2.15305089]
[1772461809251,2.33259295,83.276,83.241,2.15305089]
[1772461809450,2.33259295,83.276,83.201,187.49774639]
[1772461809451,2.33259295,83.302,83.271,2.15305089]
[1772461809672,2.33259295,83.299,83.262,2.15305089]
[1772461809970,2.33259295,83.299,83.27,9.22756873]
[1772461810169,2.33259295,83.332,83.281,2.15305089]
[1772461810384,2.33259295,83.317,83.283,12.00725238]
[1772461810672,95.94534402,83.381,83.311,2.15305089]
[1772461810673,14.33086093,83.346,83.311,2.15305089]
[1772461810976,2.33259295,83.345,83.311,2.15305089]
[1772461811164,2.33259295,83.376,83.321,2.15305089]
[1772461811367,2.33259295,83.369,83.33,9.22756873]
[1772461811554,3.69383402,83.374,83.351,2.15305089]
[1772461811753,0.1,83.39,83.361,2.15305089]
[1772461811955,0.1,83.39,83.37,11.38061962]
[1772461812251,0.1,83.39,83.371,2.15305089]
[1772461812473,0.1,83.39,83.37,9.22756873]
[1772461812474,0.1,83.42,83.381,2.15305089]
[1772461812676,0.1,83.42,83.368,3.69383402]
[1772461812677,2.33259295,83.399,83.368,3.69383402]
[1772461812976,2.33259295,83.389,83.356,11.99666164]
[1772461813171,2.33259295,83.389,83.346,2.15305089]
[1772461813468,2.33259295,83.389,83.338,3.69383402]
[1772461813469,2.33259295,83.379,83.341,2.15305089]
[1772461813771,185.80898834,83.419,83.35,9.22756873]
[1772461813772,2.61691609,83.389,83.35,9.22756873]
[1772461813962,2.61691609,83.389,83.341,2.15305089]
[1772461814149,2.33259295,83.389,83.351,2.30344709]
[1772461814348,9.22756873,83.38,83.341,11.9988961]
[1772461814560,2.10954047,83.38,83.35,9.22756873]
[1772461814767,2.10954047,83.38,83.341,11.9988961]
[1772461814768,2.10954047,83.409,83.371,2.30344709]
[1772461814989,2.10954047,83.418,83.381,2.30344709]
[1772461815159,2.10954047,83.409,83.36,9.22756873]
[1772461815359,2.10954047,83.389,83.35,9.22756873]
[1772461815671,137.85828167,83.419,83.308,1.20036491]
[1772461815672,2.10954047,83.379,83.341,2.30344709]
[1772461815864,2.10954047,83.369,83.33,11.53101582]
[1772461816173,9.22756873,83.37,83.328,2.30344709]
[1772461816375,11.99501007,83.368,83.331,12.000336]
[1772461816584,3.69383402,83.402,83.331,12.000336]
[1772461816585,2.10954047,83.378,83.341,2.30344709]
[1772461816754,2.10954047,83.389,83.351,2.30344709]
[1772461816955,14.10152982,83.389,83.351,2.30344709]
[1772461817159,2.10954047,83.388,83.351,2.30344709]
[1772461817385,9.22756873,83.38,83.351,2.30344709]
[1772461817677,11.99198935,83.389,83.33,2.30346033]
[1772461817678,2.1377278,83.379,83.33,2.30346033]
[1772461817875,2.1377278,83.379,83.341,2.30346033]
[1772461818074,2.1377278,83.379,83.34,9.22756873]
[1772461818075,9.22756873,83.38,83.34,11.53102906]
[1772461818274,2.1377278,83.379,83.341,2.30346033]
[1772461818471,2.1377278,83.369,83.331,2.30346033]
[1772461818775,2.1377278,83.369,83.332,2.30346033]
[1772461819159,9.22756873,83.38,83.341,2.30346033]
[1772461819363,11.99068374,83.399,83.37,9.22756873]
[1772461819701,2.1377278,83.429,83.39,9.22756873]
[1772461819860,2.1377278,83.429,83.331,234.00642458]
[1772461819861,0.1,83.43,83.41,11.53102906]
[1772461820062,0.1,83.43,83.4,9.22756873]
[1772461820360,0.1,83.43,83.355,4.82477569]
[1772461820361,2.1377278,83.429,83.39,9.22756873]
[1772461820552,2.1377278,83.427,83.391,11.99170174]
[1772461820756,0.1,83.43,83.411,2.30346033]
[1772461820962,0.1,83.43,83.391,41.97095609]
[1772461820963,0.1,83.43,83.401,2.30346033]
[1772461821158,2.1377278,83.429,83.391,11.99170174]
[1772461821371,2.1377278,83.429,83.379,29.9832599]
[1772461821372,2.1377278,83.419,83.38,9.22756873]
[1772461821677,2.1377278,83.428,83.38,9.22756873]
[1772461821880,11.98623979,83.429,83.391,2.30346033]
[1772461822178,2.1377278,83.428,83.391,2.30346033]
[1772461822379,2.1377278,83.428,83.39,9.22756873]
[1772461822380,2.1377278,83.409,83.36,21.22359317]
[1772461822682,2.1377278,83.389,83.35,9.22756873]
[1772461822877,2.1377278,83.389,83.351,2.30346033]
[1772461823783,9.22756873,83.38,83.341,2.30346033]
[1772461824291,2.1377278,83.369,83.33,23.53150907]
[1772461824581,2.1377278,83.367,83.33,11.53102906]
[1772461824885,9.22756873,83.36,83.325,12.00109269]
[1772461825099,2.1377278,83.359,83.321,12.00177626]
[1772461825264,2.1377278,83.359,83.32,2.30346033]
[1772461825586,9.22756873,83.36,83.32,2.30346033]
[1772461825587,9.22756873,83.36,83.321,2.30346033]
[1772461825766,2.1377278,83.367,83.321,2.30346033]
[1772461826095,2.1377278,83.359,83.31,9.22756873]
[1772461826387,41.98253525,83.368,83.298,3.69383402]
[1772461826388,2.1377278,83.339,83.3,2.30346033]
[1772461826593,2.1377278,83.339,83.268,48.03764593]
[1772461826594,2.1377278,83.329,83.28,9.22756873]
[1772461826767,11.99932803,83.338,83.278,2.30346033]
[1772461826768,9.22756873,83.31,83.278,2.30346033]
[1772461827384,2.1377278,83.319,83.278,2.30346033]
[1772461827592,41.99764812,83.338,83.251,2.30346033]
[1772461827593,2.1377278,83.309,83.251,2.30346033]
[1772461827888,2.1377278,83.31,83.28,9.22756873]
[1772461828094,9.22756873,83.29,83.261,2.30346033]
[1772461828299,2.1377278,83.279,83.24,9.42756873]
[1772461828586,2.1377278,83.277,83.24,9.4409214]
[1772461828767,12.00797329,83.278,83.24,9.4409214]
[1772461828768,2.1377278,83.269,83.24,0.2]
[1772461829397,9.2409214,83.27,83.24,2.50346033]
[1772461829685,14.14570109,83.278,83.241,12.01331074]
[1772461829882,2.1377278,83.323,83.251,2.30346033]
[1772461830066,2.1377278,83.289,83.251,2.30346033]
[1772461830464,2.1377278,83.298,83.26,9.2409214]
[1772461830867,2.1377278,83.289,83.241,2.30346033]
[1772461831066,2.1377278,83.279,83.241,14.31668107]
[1772461831377,42.01731112,83.299,83.241,14.31668107]
[1772461831378,2.1377278,83.299,83.27,9.2409214]
[1772461831582,9.2409214,83.35,83.29,9.2409214]
[1772461831766,9.2409214,83.35,83.26,2.30346033]
[1772461831767,2.1377278,83.368,83.32,9.2409214]
[1772461831968,2.1377278,83.368,83.291,1.2006099]
[1772461831969,2.1377278,83.368,83.34,9.2409214]
[1772461832186,3.69383402,83.352,83.33,9.2409214]
[1772461832570,3.69383402,83.352,83.32,9.2409214]
[1772461832770,2.1377278,83.339,83.3,9.2409214]
[1772461832973,11.3786492,83.33,83.29,9.2409214]
[1772461833171,2.1377278,83.339,83.29,9.2409214]
[1772461833372,2.1377278,83.339,83.3,9.2409214]
[1772461833776,2.1377278,83.351,83.311,2.30346033]
[1772461833980,2.1377278,83.351,83.32,9.2409214]
[1772461834388,2.1377278,83.349,83.31,9.2409214]
[1772461834701,47.97962608,83.369,83.3,2.30346033]
[1772461834702,2.1377278,83.339,83.302,2.30346033]
[1772461835471,2.1377278,83.339,83.301,12.0046578]
[1772461835672,2.1377278,83.339,83.302,2.30346033]
[1772461836004,2.1377278,83.389,83.334,0.28432314]
[1772461836298,2.1377278,83.389,83.36,9.2409214]
[1772461836470,11.99213316,83.388,83.351,11.99745653]
[1772461836669,2.1377278,83.387,83.36,9.2409214]
[1772461836874,47.94803337,83.424,83.351,2.30346033]
[1772461836875,9.2409214,83.41,83.37,9.2409214]
[1772461837185,2.1377278,83.434,83.4,9.2409214]
[1772461837379,2.1377278,83.434,83.37,9.2409214]
[1772461837380,2.1377278,83.458,83.42,9.2409214]
[1772461837695,9.4409214,83.46,83.39,9.2409214]
[1772461837696,2.1377278,83.449,83.39,9.2409214]
[1772461837900,11.3786492,83.43,83.39,11.54438173]
[1772461838077,2.1377278,83.43,83.4,9.2409214]
[1772461838590,42.14136092,83.45,83.4,9.2409214]
[1772461838591,11.98422875,83.443,83.402,2.30346033]
[1772461838908,11.98336708,83.449,83.41,9.2409214]
[1772461839072,2.1377278,83.448,83.41,9.2409214]
[1772461839393,2.1377278,83.448,83.369,47.97898546]
[1772461839394,9.2409214,83.43,83.39,23.53608946]
[1772461839572,2.1377278,83.429,83.39,23.53608946]
[1772461839776,9.2409214,83.42,83.39,11.99170773]
[1772461840074,41.94178479,83.449,83.391,2.30346033]
[1772461840075,9.2409214,83.43,83.391,2.30346033]
[1772461840269,9.2409214,83.44,83.401,2.30346033]
[1772461840470,9.4409214,83.45,83.411,2.30346033]
[1772461840778,9.4409214,83.45,83.413,2.30346033]
[1772461840974,0.2,83.45,83.413,2.30346033]
[1772461841173,9.4409214,83.45,83.413,2.30346033]
[1772461841375,6.03997677,83.45,83.413,1.07221562]
[1772461841586,9.2409214,83.44,83.415,3.69383402]
[1772461841793,9.2409214,83.43,83.401,11.9902639]
[1772461841984,2.3287981,83.437,83.401,41.96592366]
[1772461842184,9.2409214,83.44,83.401,41.96592366]
[1772461842393,2.3287981,83.439,83.401,11.9902639]
[1772461842586,9.2409214,83.45,83.411,11.98882641]
[1772461842789,9.2409214,83.45,83.411,41.96089244]
[1772461842971,9.2409214,83.47,83.43,9.2409214]
[1772461843175,9.2409214,83.47,83.431,0.28432314]
[1772461843373,2.3287981,83.476,83.411,149.86033015]
[1772461843374,9.2409214,83.46,83.424,0.28432314]
[1772461843901,9.2409214,83.46,83.42,9.2409214]
[1772461844597,9.2409214,83.46,83.394,95.92987541]
[1772461844598,9.3409214,83.49,83.45,9.2409214]
[1772461844800,9.3409214,83.52,83.471,0.28432314]
[1772461844981,9.3409214,83.52,83.443,3.69383402]
[1772461844982,2.98412949,83.53,83.486,0.28432314]
[1772461845176,2.98412949,83.53,83.481,0.28432314]
[1772461845177,9.2409214,83.5,83.476,0.28432314]
[1772461845497,9.2409214,83.49,83.468,3.69383402]
[1772461845676,9.2409214,83.49,83.458,3.69383402]
[1772461845885,9.2409214,83.48,83.458,3.69383402]
[1772461846087,9.2409214,83.49,83.459,0.28432314]
[1772461846381,9.2409214,83.5,83.459,0.28432314]
[1772461846586,9.2409214,83.5,83.456,0.28432314]
[1772461847278,9.2409214,83.52,83.47,9.2409214]
[1772461847478,9.2409214,83.52,83.464,0.28432314]
[1772461847479,2.3287981,83.544,83.472,5.10909883]
[1772461847705,2.3287981,83.544,83.481,0.28432314]
[1772461847706,9.2409214,83.52,83.481,0.28432314]
[1772461847902,9.2409214,83.52,83.485,0.0209631]
[1772461847903,9.21995458,83.52,83.485,0.0209631]
[1772461848093,3.35353926,83.545,83.484,0.28432314]
[1772461848094,1.02474116,83.545,83.484,0.28432314]
[1772461848282,15.4739995,83.562,83.496,0.14216157]
[1772461848476,15.4739995,83.562,83.53,9.2409214]
[1772461848677,15.4739995,83.562,83.477,3.69383402]
[1772461848678,1e-08,83.562,83.55,9.2409214]
[1772461848882,0.1,83.58,83.57,9.2409214]
[1772461849104,47.8250522,83.639,83.571,2.14740496]
[1772461849304,43.18,83.731,83.581,2.4317281]
[1772461849305,11.95285792,83.662,83.581,2.4317281]
[1772461849511,9.2409214,83.65,83.61,9.2409214]
[1772461849803,9.2409214,83.62,83.56,9.2409214]
[1772461849995,9.2409214,83.58,83.54,9.2409214]
[1772461850184,4.82477569,83.622,83.53,9.2409214]
[1772461850386,9.2409214,83.57,83.521,2.14740496]
[1772461850593,2.11259979,83.598,83.56,9.2409214]
[1772461850791,41.8665295,83.599,83.54,9.2409214]
[1772461850792,2.11259979,83.579,83.54,9.2409214]
[1772461851590,2.11259979,83.571,83.52,9.2409214]
[1772461851815,2.11259979,83.569,83.53,9.2409214]
[1772461852088,3.69383402,83.603,83.561,2.14740496]
[1772461852388,2.11259979,83.604,83.57,9.2409214]
[1772461852595,2.11259979,83.602,83.549,2.14740496]
[1772461852791,41.86452638,83.603,83.52,47.89246404]
[1772461852792,2.11259979,83.569,83.53,9.2409214]
[1772461852990,2.11259979,83.559,83.52,9.2409214]
[1772461853192,9.2409214,83.57,83.53,9.2409214]
[1772461853394,2.11259979,83.537,83.456,2.14740496]
[1772461853594,2.11259979,83.537,83.364,60.49941893]
[1772461853595,2.11259979,83.479,83.415,2.14740496]
[1772461853803,2.11259979,83.479,83.388,47.96849631]
[1772461853804,9.2409214,83.45,83.411,2.14740496]
[1772461853980,9.2409214,83.45,83.357,47.98581924]
[1772461853981,1.12679227,83.474,83.401,2.14740496]
[1772461854185,1.12679227,83.474,83.371,11.99457845]
[1772461854186,1.12679227,83.474,83.43,9.2409214]
[1772461854411,9.2409214,83.5,83.46,9.2409214]
[1772461854710,21.21266807,83.53,83.49,9.2409214]
[1772461854912,21.21266807,83.53,83.472,2.14740496]
[1772461854913,1.12679227,83.529,83.48,9.2409214]
[1772461855412,1.12679227,83.529,83.446,47.93504763]
[1772461855413,9.2409214,83.49,83.333,168.000672]
[1772461855611,3.69383402,83.482,83.41,9.2409214]
[1772461855906,2.11259979,83.429,83.334,1.1999904]
[1772461856097,3.69383402,83.452,83.38,9.2409214]
[1772461856098,2.11259979,83.419,83.38,9.2409214]
[1772461856402,2.11259979,83.419,83.334,1.1999904]
[1772461856403,2.11259979,83.409,83.36,9.2409214]
[1772461856589,2.11259979,83.409,83.37,14.77822961]
[1772461856785,12.63750382,83.481,83.39,14.77822961]
[1772461856786,11.98623979,83.429,83.39,14.77822961]
[1772461857010,11.98623979,83.429,83.38,14.77822961]
[1772461857011,2.11259979,83.428,83.38,14.77822961]
[1772461857202,2.11259979,83.409,83.36,14.77822961]
[1772461857503,2.11259979,83.409,83.337,1.1999472]
[1772461857504,2.11259979,83.409,83.37,14.77822961]
[1772461857709,2.11259979,83.409,83.378,1.02679363]
[1772461857909,14.77822961,83.42,83.38,14.77822961]
[1772461858091,2.11259979,83.425,83.39,14.77822961]
[1772461858286,14.77822961,83.4,83.36,14.77822961]
[1772461858492,14.77822961,83.39,83.35,14.77822961]
[1772461858810,245.7179158,83.429,83.36,14.77822961]
[1772461858811,2.11259979,83.397,83.36,14.77822961]
[1772461858983,2.11259979,83.397,83.34,2.14740496]
[1772461858984,14.77822961,83.39,83.34,16.92563457]
[1772461859189,2.11259979,83.41,83.36,14.77822961]
[1772461859389,11.98779744,83.419,83.38,14.77822961]
[1772461859614,11.98779744,83.419,83.39,14.77822961]
[1772461859807,2.11259979,83.424,83.39,14.77822961]
[1772461860012,11.98480326,83.439,83.41,14.77822961]
[1772461860345,47.91712854,83.478,83.378,5.1775143]
[1772461860346,2.11259979,83.454,83.42,14.77822961]
[1772461860493,2.11259979,83.454,83.403,2.14740496]
[1772461860494,2.11259979,83.502,83.441,2.14740496]
[1772461860816,47.88251242,83.538,83.443,11.98422875]
[1772461860817,2.11259979,83.498,83.443,11.98422875]
[1772461861014,0.28432314,83.491,83.428,2.14740496]
[1772461861197,2.11259979,83.469,83.42,14.77822961]
[1772461861404,16.8908294,83.44,83.399,3.69383402]
[1772461861712,6.32196098,83.49,83.435,2.14740496]
[1772461861713,1.49718529,83.49,83.435,2.14740496]
[1772461861893,47.88313839,83.537,83.432,0.28432314]
[1772461861894,1.49655791,83.525,83.481,2.14740496]
[1772461862093,1.49655791,83.525,83.436,0.59877337]
[1772461862094,2.11259979,83.571,83.52,14.77822961]
[1772461862303,2.11259979,83.571,83.51,2.14740496]
[1772461862304,2.11259979,83.569,83.54,14.77822961]
[1772461862503,2.11259979,83.586,83.54,14.77822961]
[1772461862713,2.11259979,83.586,83.523,0.28432314]
[1772461862714,11.96386911,83.585,83.523,0.28432314]
[1772461863013,11.9593591,83.617,83.57,14.77822961]
[1772461863190,11.9593591,83.617,83.524,47.98477569]
[1772461863191,1.4949292,83.616,83.56,14.77822961]
[1772461863394,2.11259979,83.599,83.548,3.69383402]
[1772461863604,14.77822961,83.58,83.54,14.77822961]
[1772461863816,14.77822961,83.58,83.524,43.16]
[1772461863817,2.11259979,83.578,83.524,43.16]
[1772461864021,2.11259979,83.576,83.54,14.77822961]
[1772461864310,2.11259979,83.576,83.524,43.16]
[1772461864311,14.77822961,83.59,83.55,14.77822961]
[1772461864520,173.40141828,83.621,83.527,3.69383402]
[1772461864521,14.77822961,83.61,83.57,14.77822961]
[1772461864707,14.77822961,83.61,83.558,3.69383402]
[1772461865013,11.95914755,83.618,83.55,14.77822961]
[1772461865014,14.77822961,83.59,83.55,14.77822961]
[1772461865205,14.77822961,83.59,83.541,2.14740496]
[1772461865406,14.77822961,83.57,83.53,14.77822961]
[1772461865608,2.11259979,83.595,83.56,14.77822961]
[1772461865918,2.11259979,83.593,83.53,2.4317281]
[1772461866106,2.11259979,83.593,83.529,3.69383402]
[1772461866107,14.77822961,83.61,83.57,14.77822961]
[1772461866309,3.69383402,83.615,83.58,14.77822961]
[1772461866514,11.95757452,83.629,83.59,14.77822961]
[1772461866691,11.95757452,83.629,83.526,293.32183988]
[1772461866692,14.77822961,83.65,83.601,11.9615794]
[1772461866891,2.11259979,83.666,83.62,14.77822961]
[1772461867108,2.11259979,83.659,83.62,14.77822961]
[1772461867411,0.90136186,83.665,83.601,11.9615794]
[1772461867412,14.77822961,83.64,83.601,11.9615794]
[1772461867611,14.77822961,83.64,83.6,14.77822961]
[1772461867612,14.77822961,83.62,83.58,16.92563457]
[1772461867803,14.77822961,83.6,83.56,14.77822961]
[1772461868003,14.77822961,83.59,83.55,16.92563457]
[1772461868208,14.77822961,83.61,83.561,2.14740496]
[1772461868390,14.77822961,83.6,83.561,2.14740496]
[1772461868722,14.77822961,83.63,83.59,14.77822961]
[1772461868908,14.77822961,83.63,83.572,41.88005551]
[1772461868909,0.90136186,83.666,83.621,2.14740496]
[1772461869099,0.90136186,83.666,83.62,14.77822961]
[1772461869100,14.77822961,83.66,83.62,14.77822961]
[1772461869408,11.95171507,83.67,83.62,14.77822961]
[1772461869409,2.11259979,83.668,83.63,14.77822961]
[1772461869610,2.11259979,83.679,83.623,2.14740496]
[1772461869828,0.2539261,83.698,83.572,364.9547695]
[1772461869829,0.2539261,83.698,83.66,14.77822961]
[1772461869999,1e-08,83.698,83.67,14.77822961]
[1772461870312,1e-08,83.698,83.612,4.82477569]
[1772461870313,1e-08,83.698,83.661,2.14740496]
[1772461870513,1e-08,83.698,83.668,0.28432314]
[1772461870720,2.11259979,83.727,83.68,14.77822961]
[1772461870721,1e-08,83.712,83.68,14.77822961]
[1772461871011,14.77822961,83.75,83.701,2.14740496]
[1772461871204,14.77822961,83.72,83.68,14.77822961]
[1772461871408,2.11259979,83.709,83.661,2.14740496]
[1772461871591,2.11259979,83.709,83.66,11.95314367]
[1772461871592,0.90136186,83.718,83.671,2.14740496]
[1772461871794,0.90136186,83.718,83.66,11.95314367]
[1772461871795,2.11259979,83.739,83.678,2.14740496]
[1772461871995,14.77822961,83.74,83.66,41.83600286]
[1772461871996,17.39536658,83.782,83.72,14.77822961]
[1772461872199,17.39536658,83.782,83.74,14.77822961]
[1772461872200,11.93588045,83.781,83.74,14.77822961]
[1772461872409,47.73419017,83.798,83.692,4.82477569]
[1772461872410,6.2396582,83.819,83.761,2.14740496]
[1772461872717,14.77822961,83.78,83.737,2.14740496]
[1772461872901,184.92447921,83.818,83.723,2.14740496]
[1772461872902,14.77822961,83.76,83.723,2.14740496]
[1772461873100,232.64692546,83.818,83.721,2.14740496]
[1772461873101,4.82477569,83.817,83.721,2.14740496]
[1772461873305,232.64692546,83.818,83.662,47.81091725]
[1772461873306,14.77822961,83.75,83.674,11.95114372]
[1772461873604,14.77822961,83.72,83.667,11.95211947]
[1772461873915,14.77822961,83.72,83.631,43.1]
[1772461873916,2.11259979,83.699,83.64,14.77822961]
[1772461874210,14.77822961,83.68,83.64,14.77822961]
[1772461874717,6.01986373,83.752,83.617,11.95929057]
[1772461874939,14.77822961,83.69,83.617,41.857517]
[1772461875223,0.14216157,83.722,83.67,14.77822961]
[1772461875428,14.77822961,83.69,83.638,3.69383402]
[1772461875718,2.32602971,83.73,83.68,14.77822961]
[1772461876019,2.32602971,83.737,83.7,14.77822961]
[1772461876218,2.32602971,83.737,83.69,14.77822961]
[1772461876219,14.77822961,83.73,83.69,14.77822961]
[1772461876394,14.77822961,83.7,83.661,2.34049704]
[1772461876718,14.77822961,83.7,83.661,11.9530008]